bitfinex-derivatives/quotes_BTCF0:USTF0_20251030
["timestamp","ask_amount","ask_price","bid_price","bid_amount"]
[1761811972483,0.66032824,110970.0,110960.0,0.17403]
[1761811972683,0.63084824,110970.0,110960.0,0.17403]
[1761811972887,0.99464824,110970.0,110960.0,0.17503]
[1761811973095,0.63384824,110970.0,110960.0,0.17503]
[1761811973301,0.99464824,110970.0,110960.0,0.17503]
[1761811973502,0.99664824,110970.0,110960.0,0.17503]
[1761811973801,0.99664824,110970.0,110960.0,0.10321]
[1761811974503,0.99664824,110970.0,110960.0,0.03903]
[1761811974694,0.66804824,110970.0,110960.0,0.001]
[1761811974896,0.99628824,110970.0,110960.0,0.17056]
[1761811976996,0.99900824,110970.0,110960.0,0.001]
[1761811977197,0.99628824,110970.0,110960.0,0.001]
[1761811977793,0.99628824,110970.0,110960.0,0.17056]
[1761811978886,0.79576736,110970.0,110960.0,0.17056]
[1761811979203,0.99628824,110970.0,110960.0,0.17056]
[1761811980004,0.99628824,110970.0,110960.0,0.001]
[1761811980191,0.99628824,110970.0,110960.0,0.17056]
[1761811980502,0.66532824,110970.0,110960.0,0.17056]
[1761811980708,0.53584824,110970.0,110960.0,0.17056]
[1761811981005,0.00508736,110970.0,110960.0,0.17056]
[1761811981206,0.00508736,110970.0,110960.0,0.53136]
[1761811981499,0.00508736,110970.0,110960.0,0.53408]
[1761811981705,0.00508736,110970.0,110960.0,1.2214858]
[1761811981909,0.00508736,110970.0,110960.0,0.6242058]
[1761811982096,0.20052088,110990.0,110980.0,0.16956]
[1761811982297,0.53060088,110990.0,110980.0,0.16956]
[1761811982804,0.57856088,110990.0,110980.0,0.16956]
[1761811983008,0.62652088,110990.0,110980.0,0.16956]
[1761811983489,0.62852088,110990.0,110980.0,0.16956]
[1761811984814,0.09392,110980.0,110970.0,0.13153]
[1761811985011,0.09392,110970.0,110960.0,0.16956]
[1761811985309,0.09392,110960.0,110950.0,0.49242526]
[1761811985508,0.29444088,110960.0,110950.0,0.49242526]
[1761811985694,0.24748088,110970.0,110960.0,0.16956]
[1761811985896,0.57724088,110970.0,110960.0,0.16956]
[1761811986105,0.62420088,110970.0,110960.0,0.53036]
[1761811986492,0.57724088,110970.0,110960.0,0.53036]
[1761811986711,0.65524088,110980.0,110970.0,0.13153]
[1761811986913,0.98476088,110980.0,110970.0,0.13153]
[1761811987106,0.65524088,110980.0,110970.0,0.13153]
[1761811987313,0.98476088,110980.0,110970.0,0.13153]
[1761811987912,0.65524088,110990.0,110980.0,0.13153]
[1761811988104,0.98476088,110990.0,110980.0,0.16956]
[1761811988709,0.65524088,110990.0,110980.0,0.16956]
[1761811988913,0.62372088,110990.0,110980.0,0.16956]
[1761811989603,0.62572088,110990.0,110980.0,0.16956]
[1761811990011,0.09392,110980.0,110970.0,0.42498]
[1761811990214,0.09392,110980.0,110970.0,0.13153]
[1761811990417,0.62356088,110980.0,110970.0,0.13153]
[1761811991412,0.62856088,110980.0,110970.0,0.13153]
[1761811991617,0.29944088,110980.0,110970.0,0.13153]
[1761811991804,0.62852088,110980.0,110970.0,0.13153]
[1761811992336,0.63052088,110980.0,110970.0,0.13153]
[1761811992509,0.09392,110970.0,110960.0,0.46301]
[1761811992704,0.29444088,110970.0,110960.0,0.53036]
[1761811993310,0.09392,110960.0,110950.0,0.49242526]
[1761811993519,0.62312088,110960.0,110950.0,0.13162526]
[1761811994704,0.62812088,110960.0,110950.0,0.13162526]
[1761811995021,0.62912088,110960.0,110950.0,0.13162526]
[1761811995602,0.4286,110960.0,110950.0,0.49242526]
[1761811997411,0.62912088,110960.0,110950.0,0.49242526]
[1761811999013,0.006,110960.0,110950.0,0.49242526]
[1761811999312,0.33424,110960.0,110950.0,0.54077105]
[1761812000217,0.006,110960.0,110950.0,1.14077105]
[1761812000418,0.006,110960.0,110950.0,0.83414533]
[1761812000717,0.00468426,110960.0,110950.0,0.58527866]
[1761812000919,0.00431434,110960.0,110950.0,0.58527866]
[1761812001419,0.00431434,110960.0,110950.0,0.94579954]
[1761812001918,0.00431434,110960.0,110950.0,0.78579954]
[1761812002521,0.00331434,110960.0,110950.0,0.78679954]
[1761812002824,0.00331434,110960.0,110950.0,0.58627866]
[1761812003520,0.32824,110980.0,110970.0,0.11759]
[1761812003709,0.0205719,110980.0,110970.0,0.47839]
[1761812004024,0.3488119,110980.0,110970.0,0.47839]
[1761812004417,0.3488119,110980.0,110970.0,0.5685077]
[1761812004614,0.3548119,110980.0,110970.0,0.5685077]
[1761812004814,0.3558119,110980.0,110970.0,0.5685077]
[1761812005521,0.3558119,110980.0,110970.0,0.57690588]
[1761812005716,0.0275719,110980.0,110970.0,0.57690588]
[1761812005922,0.05169492,110980.0,110970.0,0.57690588]
[1761812006119,0.37989492,110980.0,110970.0,0.57690588]
[1761812007332,0.05169492,110980.0,110970.0,0.57690588]
[1761812007523,0.0275719,110980.0,110970.0,1.54042588]
[1761812007725,0.0275719,110980.0,110970.0,0.94042588]
[1761812008030,0.0275719,110980.0,110970.0,0.93770588]
[1761812009821,0.0275719,110980.0,110970.0,0.94042588]
[1761812012425,0.0275719,110980.0,110970.0,0.93770588]
[1761812012619,0.0275719,110980.0,110970.0,1.26586588]
[1761812012821,0.0275719,110980.0,110970.0,1.86858588]
[1761812013021,0.0275719,110980.0,110970.0,1.86586588]
[1761812013412,0.0275719,110980.0,110970.0,1.90185588]
[1761812013831,0.0275719,110980.0,110970.0,1.90457588]
[1761812015217,0.0275719,110980.0,110970.0,1.90185588]
[1761812016027,0.02412302,110990.0,110970.0,1.90185588]
[1761812016028,0.05629197,111000.0,110990.0,0.2436813]
[1761812016235,0.02412302,111000.0,110990.0,1.63050787]
[1761812016931,0.02412302,111000.0,110990.0,1.2934013]
[1761812017131,0.02412302,111000.0,110990.0,1.4134013]
[1761812017432,0.009,111000.0,110990.0,1.4134013]
[1761812017625,0.009,111000.0,110990.0,1.6034013]
[1761812018026,0.009,111000.0,110990.0,1.6061213]
[1761812018234,0.007,111000.0,110990.0,1.2961213]
[1761812018529,0.005,111000.0,110990.0,1.63322787]
[1761812019135,0.005,111000.0,110990.0,1.63050787]
[1761812019919,0.004,111000.0,110990.0,1.63050787]
[1761812020238,0.02412302,111010.0,111000.0,0.2076834]
[1761812020435,0.02412302,111010.0,111000.0,0.5684834]
[1761812021437,0.02912302,111010.0,111000.0,0.6044734]
[1761812023130,0.03012302,111010.0,111000.0,0.6044734]
[1761812025123,0.03012302,111010.0,111000.0,0.9324334]
[1761812027444,0.13352302,111010.0,111000.0,0.9324333]
[1761812027634,0.47062959,111010.0,111000.0,0.51438]
[1761812027840,0.50279854,111010.0,111000.0,0.51438]
[1761812028235,1.08139552,111010.0,111000.0,0.51438]
[1761812028444,0.05986,111000.0,110990.0,0.44848]
[1761812028744,0.11614058,111000.0,110990.0,0.3608]
[1761812029133,0.11614058,111000.0,110990.0,0.49519]
[1761812029334,0.08397163,111000.0,110990.0,0.49519]
[1761812029534,0.41185163,111000.0,110990.0,0.49519]
[1761812029735,0.41285163,111000.0,110990.0,0.49519]
[1761812029949,0.08497163,111000.0,110990.0,0.49519]
[1761812030349,0.09197163,111000.0,110990.0,0.49619]
[1761812030547,0.09297163,111000.0,110990.0,0.5862913]
[1761812031069,0.09097163,111000.0,110990.0,0.5862913]
[1761812033460,0.09097163,111000.0,110990.0,0.49619]
[1761812033762,0.4307982,111000.0,110990.0,0.49619]
[1761812033953,0.46024715,111000.0,110990.0,0.001]
[1761812035867,0.46296715,111000.0,110990.0,0.001]
[1761812036054,0.46024715,111000.0,110990.0,0.001]
[1761812040861,1.0280782,111000.0,110990.0,0.001]
[1761812041665,1.3888782,111000.0,110990.0,0.001]
[1761812041969,1.4088782,111000.0,110990.0,0.001]
[1761812042163,0.78748657,111000.0,110970.0,0.39679]
[1761812042359,0.78748657,111000.0,110960.0,0.42518435]
[1761812042360,0.05986,110970.0,110960.0,0.52759435]
[1761812042565,0.72472657,110970.0,110960.0,0.49519]
[1761812042761,0.05986,110960.0,110950.0,0.52768961]
[1761812043977,0.39596657,110960.0,110950.0,0.52768961]
[1761812044375,0.39596657,110960.0,110950.0,0.42527961]
[1761812044675,0.42096657,110960.0,110950.0,0.00109526]
[1761812044862,1.01996657,110960.0,110950.0,0.00109526]
[1761812045065,0.78348657,110960.0,110950.0,0.00109526]
[1761812045261,0.08379,110950.0,110940.0,0.03240435]
[1761812045462,0.74865657,110950.0,110940.0,0.03240435]
[1761812045671,0.05586,110940.0,110930.0,0.52759435]
[1761812045872,0.39296657,110940.0,110930.0,0.16679435]
[1761812046580,0.3930493,110940.0,110930.0,0.16679435]
[1761812046980,0.3930493,110940.0,110930.0,0.03240435]
[1761812047179,0.3970493,110940.0,110930.0,0.03340435]
[1761812047779,0.05586,110930.0,110920.0,0.16679435]
[1761812048281,0.05586,110930.0,110920.0,0.52759435]
[1761812048593,0.33180273,110940.0,110930.0,0.10241]
[1761812048771,0.33180273,110940.0,110930.0,0.49552952]
[1761812048971,0.38766273,110940.0,110930.0,0.49552952]
[1761812049679,0.33180273,110940.0,110930.0,0.58567922]
[1761812050178,0.32880273,110940.0,110930.0,0.58567922]
[1761812050878,0.33280273,110940.0,110930.0,0.58667922]
[1761812051268,0.7257693,110940.0,110930.0,0.39411952]
[1761812051472,0.7257693,110940.0,110930.0,0.05269]
[1761812051678,1.0865693,110940.0,110930.0,0.05269]
[1761812052275,1.0865693,110940.0,110930.0,0.001]
[1761812052276,1.0892893,110940.0,110930.0,0.001]
[1761812052583,1.1092893,110940.0,110930.0,0.001]
[1761812052765,1.20922999,110940.0,110930.0,0.001]
[1761812052967,1.20650999,110940.0,110930.0,0.001]
[1761812053279,1.20646999,110940.0,110930.0,0.001]
[1761812054074,1.20918999,110940.0,110930.0,0.001]
[1761812054271,1.20518999,110940.0,110920.0,0.03231952]
[1761812054466,0.73945657,110930.0,110920.0,0.03231952]
[1761812054786,0.0218,110920.0,110910.0,0.51379952]
[1761812055170,0.35890657,110920.0,110910.0,0.03231952]
[1761812055377,0.68658657,110920.0,110910.0,0.48181952]
[1761812055682,0.68667588,110920.0,110910.0,0.12101952]
[1761812056090,0.35899588,110920.0,110910.0,0.12101952]
[1761812056286,0.01098931,110920.0,110910.0,0.48181952]
[1761812056482,0.33866931,110920.0,110910.0,0.48181952]
[1761812056685,0.34956931,110920.0,110910.0,0.48181952]
[1761812056886,0.68667588,110920.0,110910.0,0.48181952]
[1761812057485,0.68967588,110920.0,110910.0,0.48181952]
[1761812057884,0.68967588,110920.0,110910.0,0.12101952]
[1761812059185,1.05047588,110920.0,110910.0,0.03231952]
[1761812059487,1.07319588,110920.0,110910.0,0.03231952]
[1761812059870,1.67319588,110920.0,110910.0,0.03231952]
[1761812060073,1.67319588,110920.0,110910.0,0.00988542]
[1761812060576,0.01688,110910.0,110900.0,0.48740357]
[1761812060778,0.35398657,110910.0,110900.0,0.53270357]
[1761812062682,0.3754538,110910.0,110900.0,0.48409]
[1761812063083,0.03834723,110910.0,110900.0,0.48409]
[1761812063291,0.36594723,110910.0,110900.0,0.48409]
[1761812064789,0.7030538,110910.0,110900.0,0.48409]
[1761812065384,0.5673488,110910.0,110900.0,0.48409]
[1761812065781,0.56741518,110910.0,110900.0,0.48409]
[1761812066685,0.57013518,110910.0,110900.0,0.48409]
[1761812066895,0.54694795,110910.0,110900.0,0.48409]
[1761812067090,0.5675596,110910.0,110900.0,0.48409]
[1761812067291,0.56756105,110910.0,110900.0,0.48409]
[1761812067693,0.36615948,110910.0,110900.0,0.48409]
[1761812067894,0.56756105,110910.0,110900.0,0.48409]
[1761812069596,0.55904105,110910.0,110900.0,0.48409]
[1761812070893,0.36607948,110910.0,110900.0,0.48409]
[1761812071106,0.56748105,110910.0,110900.0,0.48409]
[1761812071497,0.02167948,110910.0,110900.0,0.5742646]
[1761812071697,0.00106638,110910.0,110900.0,0.5742646]
[1761812072100,0.00106638,110910.0,110900.0,1.1742646]
[1761812072286,0.00106638,110910.0,110900.0,0.5742646]
[1761812072596,0.02169456,110910.0,110900.0,0.5769846]
[1761812072803,0.02069456,110910.0,110900.0,0.5742646]
[1761812072999,0.02069456,110910.0,110900.0,0.89566617]
[1761812073204,6.638e-05,110910.0,110900.0,0.89838617]
[1761812074500,6.638e-05,110910.0,110900.0,0.6969846]
[1761812074705,6.638e-05,110910.0,110900.0,0.5742646]
[1761812075092,0.02070101,110910.0,110900.0,0.48409]
[1761812075304,6.638e-05,110910.0,110900.0,0.48409]
[1761812075491,0.20146795,110910.0,110900.0,0.48409]
[1761812075690,0.20146795,110910.0,110900.0,0.5742645]
[1761812075890,0.22210362,110910.0,110900.0,0.5742645]
[1761812076299,0.02914205,110910.0,110900.0,0.5742645]
[1761812076495,0.02070205,110910.0,110900.0,0.5742645]
[1761812077901,6.638e-05,110910.0,110900.0,0.5742645]
[1761812078288,6.638e-05,110910.0,110900.0,1.1742645]
[1761812078811,6.638e-05,110910.0,110900.0,0.77838607]
[1761812079204,6.638e-05,110910.0,110900.0,0.90566607]
[1761812079804,6.638e-05,110910.0,110900.0,0.9015845]
[1761812080001,0.23899069,110910.0,110900.0,0.48409]
[1761812080590,0.03758912,110910.0,110900.0,0.48409]
[1761812080794,0.03758912,110910.0,110900.0,0.5742645]
[1761812081989,0.02070912,110910.0,110900.0,0.5742645]
[1761812082194,0.02914912,110910.0,110900.0,0.5742645]
[1761812082399,0.03758912,110910.0,110900.0,0.5742645]
[1761812083197,0.02914912,110910.0,110900.0,0.5742645]
[1761812083600,0.02070912,110910.0,110900.0,0.5742645]
[1761812088799,0.02070912,110910.0,110900.0,0.48409]
[1761812088999,0.02070912,110910.0,110900.0,0.5742645]
[1761812092208,0.02070912,110910.0,110900.0,0.48409]
[1761812092399,0.22211069,110910.0,110900.0,0.48409]
[1761812092805,0.02070912,110910.0,110900.0,0.5742644]
[1761812095312,0.18178743,110910.0,110900.0,0.5742644]
[1761812096911,0.50870743,110910.0,110900.0,0.5742644]
[1761812097212,0.50870743,110910.0,110900.0,0.48409]
[1761812097709,0.50970743,110910.0,110900.0,0.48409]
[1761812098514,0.50970743,110910.0,110900.0,0.5742645]
[1761812099104,0.34862912,110910.0,110900.0,0.5742645]
[1761812099721,0.50970743,110910.0,110900.0,0.5742645]
[1761812100515,0.50962743,110910.0,110900.0,0.5742645]
[1761812100917,0.02170912,110910.0,110900.0,0.73534281]
[1761812101114,0.34850912,110910.0,110900.0,0.73534281]
[1761812101304,0.02170912,110910.0,110900.0,0.89642112]
[1761812102916,0.02410777,110920.0,110910.0,0.1938661]
[1761812103116,0.02410777,110920.0,110910.0,0.82574441]
[1761812103305,0.35090777,110930.0,110920.0,0.193858]
[1761812103507,0.35090777,110930.0,110920.0,0.71573631]
[1761812103703,0.18518608,110940.0,110930.0,0.0901502]
[1761812103908,0.51190608,110940.0,110930.0,0.71572851]
[1761812104207,0.16107831,110940.0,110930.0,0.71572851]
[1761812104516,0.48775831,110940.0,110930.0,0.71572851]
[1761812105418,0.32668,110940.0,110930.0,0.71572851]
[1761812105620,0.49275831,110940.0,110930.0,0.71572851]
[1761812105817,0.16807831,110940.0,110930.0,0.71572851]
[1761812106319,0.006,110940.0,110930.0,0.71572851]
[1761812106518,0.006,110940.0,110930.0,0.72457531]
[1761812106715,0.16707831,110940.0,110930.0,0.72457531]
[1761812107802,0.006,110940.0,110930.0,0.72457531]
[1761812108504,0.006,110940.0,110930.0,0.99457531]
[1761812108910,0.006,110940.0,110930.0,0.833497]
[1761812109222,0.006,110940.0,110930.0,0.72457531]
[1761812109425,0.006,110940.0,110930.0,0.563497]
[1761812109612,0.006,110940.0,110930.0,0.84457531]
[1761812112523,0.006,110940.0,110930.0,1.02457531]
[1761812112722,0.18518608,110970.0,110960.0,0.1938257]
[1761812112913,0.54996608,110970.0,110960.0,0.4645]
[1761812114616,0.55396608,110970.0,110960.0,0.4645]
[1761812115016,0.58255668,110970.0,110960.0,0.4645]
[1761812115723,0.58155668,110970.0,110960.0,0.4645]
[1761812117224,0.74263499,110970.0,110960.0,0.4645]
[1761812117523,0.73863499,110970.0,110960.0,0.4645]
[1761812117931,0.73263499,110970.0,110960.0,0.4655]
[1761812118229,1.33263499,110970.0,110960.0,0.4655]
[1761812118429,1.33268884,110970.0,110960.0,0.4655]
[1761812118829,1.30858107,110970.0,110960.0,0.4655]
[1761812119419,1.33268884,110970.0,110960.0,0.4655]
[1761812119613,1.30858107,110970.0,110960.0,0.4655]
[1761812119818,1.14750276,110970.0,110960.0,0.4655]
[1761812120330,1.14750276,110970.0,110960.0,0.5556258]
[1761812122035,0.52801276,110970.0,110960.0,0.5556258]
[1761812123224,0.53371276,110970.0,110960.0,0.5556258]
[1761812123424,0.53371276,110970.0,110960.0,0.4655]
[1761812124024,0.55782053,110970.0,110960.0,0.4655]
[1761812124239,0.71889884,110970.0,110960.0,0.4655]
[1761812124426,0.72889884,110970.0,110960.0,0.1047]
[1761812124632,1.08969884,110970.0,110960.0,0.1047]
[1761812125739,0.71889884,110970.0,110960.0,0.1047]
[1761812125931,0.55782053,110970.0,110960.0,0.1047]
[1761812126329,0.55782053,110970.0,110960.0,1.6047]
[1761812127144,1.35106779,110970.0,110960.0,1.6047]
[1761812127346,1.31866134,110970.0,110960.0,1.6047]
[1761812128039,0.71866134,110970.0,110960.0,1.6047]
[1761812128239,0.72866134,110970.0,110960.0,0.1047]
[1761812129040,1.08946134,110970.0,110960.0,0.1047]
[1761812129240,1.09752252,110970.0,110960.0,0.1047]
[1761812129440,1.08947017,110970.0,110960.0,0.1047]
[1761812129640,0.72867017,110970.0,110960.0,0.1047]
[1761812129842,0.56771061,110970.0,110960.0,0.1047]
[1761812130040,0.55747061,110970.0,110960.0,0.1047]
[1761812131043,0.23159061,110970.0,110960.0,0.1047]
[1761812131242,0.55743061,110970.0,110960.0,0.4655]
[1761812132053,0.53252061,110970.0,110960.0,0.4655]
[1761812132435,0.53822061,110970.0,110960.0,0.4655]
[1761812132635,0.54392061,110970.0,110960.0,0.4655]
[1761812133646,0.21812061,110970.0,110960.0,0.4655]
[1761812133846,0.54388061,110970.0,110960.0,0.4655]
[1761812136850,0.54380061,110970.0,110960.0,0.4655]
[1761812140250,0.54380061,110970.0,110960.0,0.1047]
[1761812140655,0.54380061,110970.0,110960.0,0.4655]
[1761812140851,0.54380061,110970.0,110960.0,0.1047]
[1761812142242,0.54380061,110970.0,110960.0,0.4655]
[1761812144649,0.52321001,110970.0,110960.0,0.4655]
[1761812147252,0.68416957,110970.0,110960.0,0.1047]
[1761812147453,1.05302192,110970.0,110960.0,0.1047]
[1761812147658,1.07302192,110970.0,110960.0,0.1047]
[1761812150048,0.71222192,110970.0,110960.0,0.1047]
[1761812150244,1.07302192,110970.0,110960.0,0.1047]
[1761812150759,1.05302192,110970.0,110960.0,0.1047]
[1761812150969,0.55501845,110970.0,110960.0,0.1047]
[1761812151260,1.04460906,110970.0,110960.0,0.001]
[1761812151457,1.16256261,110970.0,110960.0,0.001]
[1761812152962,1.16528261,110970.0,110960.0,0.001]
[1761812153555,1.80196306,110970.0,110940.0,0.05754]
[1761812153762,0.52175956,110950.0,110940.0,0.08945]
[1761812154060,0.84697341,110950.0,110940.0,0.08945]
[1761812154858,0.84697341,110950.0,110940.0,0.09145]
[1761812155768,0.90697341,110950.0,110940.0,0.09445]
[1761812155960,0.91666265,110950.0,110940.0,0.09445]
[1761812156160,0.94081406,110950.0,110940.0,0.09445]
[1761812157564,0.94081406,110950.0,110940.0,0.005]
[1761812157761,0.94081406,110950.0,110940.0,0.05566]
[1761812159158,0.91666265,110950.0,110940.0,0.08757]
[1761812160165,0.58281341,110950.0,110940.0,0.08757]
[1761812160372,0.84777341,110950.0,110940.0,0.08757]
[1761812161068,0.16201341,110950.0,110940.0,0.44837]
[1761812161472,0.48697341,110950.0,110940.0,0.44837]
[1761812161668,0.00105385,110950.0,110940.0,0.44837]
[1761812161874,0.32597385,110950.0,110940.0,0.5385118]
[1761812162078,0.32597385,110950.0,110940.0,0.57092935]
[1761812162659,0.00105385,110950.0,110940.0,0.57092935]
[1761812162965,0.32597385,110950.0,110940.0,0.57092935]
[1761812164270,0.32597385,110950.0,110940.0,0.48078755]
[1761812164470,0.48693341,110950.0,110940.0,0.48078755]
[1761812165573,0.32597385,110950.0,110940.0,0.48078755]
[1761812165781,0.32597385,110950.0,110940.0,0.57092945]
[1761812165782,0.00105385,110950.0,110940.0,0.57092945]
[1761812165976,0.32589385,110950.0,110940.0,0.57092945]
[1761812166678,0.00105385,110950.0,110940.0,0.73188901]
[1761812166980,0.32585385,110950.0,110940.0,0.73188901]
[1761812167181,0.32585385,110950.0,110940.0,0.73460901]
[1761812167778,0.32585385,110950.0,110940.0,0.57364945]
[1761812167977,0.00105385,110950.0,110940.0,0.57364945]
[1761812168579,0.00105385,110950.0,110940.0,0.73460901]
[1761812168788,0.00105385,110950.0,110940.0,0.57364945]
[1761812169290,0.00105385,110950.0,110940.0,1.05932901]
[1761812169582,0.00105385,110950.0,110940.0,1.10794258]
[1761812172288,0.00105385,110950.0,110940.0,1.18280503]
[1761812173588,0.00105385,110950.0,110940.0,0.91184547]
[1761812173885,0.00105385,110950.0,110940.0,1.10521128]
[1761812174085,0.00105385,110950.0,110940.0,1.05659771]
[1761812174290,0.00105385,110950.0,110940.0,1.10521128]
[1761812176495,0.00105385,110950.0,110940.0,1.22521128]
[1761812176895,0.00105385,110950.0,110940.0,1.82521128]
[1761812178188,0.00105385,110950.0,110940.0,1.74419146]
[1761812179487,0.00105385,110950.0,110940.0,1.67552503]
[1761812179689,0.02415141,110980.0,110970.0,0.1644071]
[1761812179878,0.02415141,110980.0,110970.0,0.5252071]
[1761812180798,0.02515141,110980.0,110970.0,0.5252071]
[1761812181097,0.02515141,110980.0,110970.0,0.68616666]
[1761812181285,0.001,110980.0,110970.0,0.68616666]
[1761812181688,0.001,110980.0,110970.0,0.5252071]
[1761812181989,0.001,110980.0,110970.0,0.53411433]
[1761812182388,0.003,110980.0,110970.0,0.53511433]
[1761812186079,0.003,110980.0,110970.0,0.69607389]
[1761812187894,0.003,110980.0,110970.0,0.53511433]
[1761812189092,0.003,110980.0,110970.0,0.69607389]
[1761812189293,0.003,110980.0,110970.0,0.69596562]
[1761812189488,0.003,110980.0,110970.0,0.72836936]
[1761812191386,0.003,110980.0,110970.0,0.85836936]
[1761812192096,0.003,110980.0,110970.0,0.72836936]
[1761812193104,0.003,110980.0,110970.0,1.21815048]
[1761812193893,0.003,110980.0,110970.0,0.8964479]
[1761812194089,0.003,110980.0,110970.0,1.05457919]
[1761812194290,0.003,110980.0,110970.0,1.37841919]
[1761812195383,0.003,110980.0,110970.0,1.54199048]
[1761812195588,0.003,110980.0,110970.0,1.53927048]
[1761812196097,0.16085129,111000.0,110990.0,0.07429]
[1761812196293,0.16085129,111000.0,110990.0,1.04683509]
[1761812196899,0.16085129,111010.0,111000.0,0.01752]
[1761812197099,0.16085129,111010.0,111000.0,0.5251825]
[1761812198797,0.16685129,111010.0,111000.0,0.5261825]
[1761812199194,0.16685129,111010.0,111000.0,0.53492715]
[1761812199391,0.16985129,111010.0,111000.0,0.44583465]
[1761812202897,0.16985129,111010.0,111000.0,0.53592735]
[1761812204097,0.16385129,111010.0,111000.0,0.53492735]
[1761812204302,0.16485129,111010.0,111000.0,0.53792735]
[1761812204485,0.16485129,111010.0,111000.0,0.53692735]
[1761812204690,0.16185129,111010.0,111000.0,0.53692735]
[1761812205700,0.16185129,111010.0,111000.0,0.43809]
[1761812205895,0.16185129,111010.0,111000.0,0.5281825]
[1761812206294,0.16185129,111010.0,111000.0,0.43809]
[1761812206696,0.16185129,111010.0,111000.0,0.5281828]
[1761812207001,0.16185129,111010.0,111000.0,0.43809]
[1761812209503,0.001,111010.0,111000.0,0.43809]
[1761812209703,0.16185129,111010.0,111000.0,0.43809]
[1761812210705,0.001,111010.0,111000.0,0.43809]
[1761812210907,0.16185129,111010.0,111000.0,0.43809]
[1761812211402,0.75765399,111010.0,111000.0,0.07729]
[1761812211596,0.75765399,111010.0,111000.0,0.07301]
[1761812212307,0.76567153,111010.0,111000.0,0.07301]
[1761812212603,0.78976228,111010.0,111000.0,0.07301]
[1761812212802,0.34679407,111010.0,111000.0,0.07301]
[1761812213302,0.70759407,111010.0,111000.0,0.07301]
[1761812214199,0.34679407,111010.0,111000.0,0.07301]
[1761812214500,0.70759407,111010.0,111000.0,0.07301]
[1761812214812,0.71759407,111010.0,111000.0,0.07301]
[1761812215306,0.74976302,111010.0,111000.0,0.07301]
[1761812215802,0.72567153,111010.0,111000.0,0.07301]
[1761812216411,1.00396895,111010.0,111000.0,0.07301]
[1761812216616,0.78596204,111010.0,111000.0,0.07301]
[1761812217207,0.71761333,111010.0,111000.0,0.04937]
[1761812217406,0.72839153,111010.0,111000.0,0.04937]
[1761812217708,0.98918351,111010.0,111000.0,0.003]
[1761812217908,1.00509501,111010.0,110980.0,0.06693]
[1761812218101,0.34581609,110990.0,110980.0,0.06693]
[1761812218407,0.36581609,110990.0,110980.0,0.06693]
[1761812218606,1.33737392,110990.0,110980.0,0.01752]
[1761812219109,1.33737392,110990.0,110980.0,0.04329]
[1761812219304,0.90685396,110990.0,110970.0,0.04329]
[1761812219510,0.83234038,110980.0,110970.0,0.04329]
[1761812219809,1.42818521,110980.0,110960.0,0.04062]
[1761812220024,0.68250258,110970.0,110960.0,0.01485]
[1761812220313,0.70250258,110970.0,110960.0,0.01485]
[1761812220609,1.16430566,110970.0,110950.0,0.01485]
[1761812220811,1.20114521,110960.0,110950.0,0.01485]
[1761812221003,1.23114521,110960.0,110950.0,0.06426]
[1761812221210,1.23657392,110960.0,110950.0,0.06426]
[1761812221509,1.20542258,110960.0,110950.0,0.06426]
[1761812222010,1.80542258,110960.0,110950.0,0.06426]
[1761812222211,1.48250258,110960.0,110950.0,0.06426]
[1761812222515,0.68250258,110960.0,110950.0,0.06426]
[1761812222702,1.00538258,110960.0,110950.0,0.06426]
[1761812222901,1.60738258,110960.0,110950.0,0.04162]
[1761812223103,1.30089456,110960.0,110950.0,0.04162]
[1761812223307,1.30089456,110960.0,110950.0,0.04062]
[1761812223515,1.30789456,110960.0,110950.0,0.04162]
[1761812223701,1.30789456,110960.0,110950.0,0.01585]
[1761812223902,1.30789456,110960.0,110950.0,0.01485]
[1761812223903,1.30089456,110960.0,110950.0,0.01485]
[1761812224105,1.14504327,110960.0,110950.0,0.01585]
[1761812224499,1.14604327,110960.0,110950.0,0.01585]
[1761812224707,1.14704327,110960.0,110950.0,0.01585]
[1761812225215,1.30789456,110960.0,110950.0,0.001]
[1761812225915,1.30689456,110960.0,110950.0,0.001]
[1761812226117,1.30689456,110960.0,110950.0,0.01585]
[1761812226510,1.30689456,110960.0,110950.0,1.56526]
[1761812226714,1.13732327,110960.0,110950.0,1.56426]
[1761812226911,1.14332327,110960.0,110950.0,1.56526]
[1761812227112,1.30417456,110960.0,110950.0,1.56526]
[1761812227318,1.29817456,110960.0,110950.0,1.56426]
[1761812227616,1.14432327,110960.0,110950.0,1.56426]
[1761812228012,1.42262069,110960.0,110950.0,1.56426]
[1761812228219,1.74432327,110960.0,110950.0,1.56426]
[1761812229321,1.90517456,110960.0,110950.0,1.56426]
[1761812230315,1.71432327,110960.0,110950.0,1.56426]
[1761812230520,1.11420327,110960.0,110950.0,1.56426]
[1761812231122,1.02426258,110960.0,110950.0,1.56426]
[1761812232026,1.01426258,110960.0,110950.0,1.56426]
[1761812232220,1.19511387,110960.0,110950.0,0.01485]
[1761812233119,1.19783387,110960.0,110940.0,0.04062]
[1761812233322,0.68250258,110950.0,110940.0,0.04062]
[1761812233520,0.71250258,110950.0,110940.0,0.04062]
[1761812233908,0.71250258,110950.0,110940.0,0.06426]
[1761812234318,0.81244327,110950.0,110940.0,0.06426]
[1761812234524,0.81844327,110950.0,110940.0,0.06426]
[1761812235316,0.35770258,110950.0,110940.0,0.06426]
[1761812235920,0.71950258,110950.0,110940.0,0.06426]
[1761812237019,0.71950258,110950.0,110940.0,0.01485]
[1761812237221,0.98302327,110950.0,110920.0,0.0615]
[1761812237416,0.32170258,110930.0,110920.0,0.0615]
[1761812238524,0.32170258,110930.0,110920.0,0.0625]
[1761812239124,0.32170258,110930.0,110920.0,0.0615]
[1761812239325,0.32170258,110930.0,110920.0,0.0625]
[1761812239722,0.003,110930.0,110920.0,0.0625]
[1761812240030,0.48633129,110930.0,110920.0,0.0625]
[1761812242225,0.48629129,110930.0,110920.0,0.0625]
[1761812242428,0.48629129,110930.0,110920.0,0.67430909]
[1761812242429,0.3254,110930.0,110920.0,0.67430909]
[1761812242728,0.48625129,110930.0,110920.0,0.67430909]
[1761812243024,0.48625129,110930.0,110920.0,0.4233]
[1761812244433,0.48625129,110930.0,110920.0,0.0625]
[1761812245231,0.48625129,110930.0,110920.0,0.4233]
[1761812245620,0.48621129,110930.0,110920.0,0.67430909]
[1761812245820,0.48617129,110930.0,110920.0,0.5134578]
[1761812246229,0.48617129,110930.0,110920.0,0.4233]
[1761812246830,0.48617129,110930.0,110920.0,0.5134578]